bitfinex/quotes_ETHUSD_20250821
["timestamp","ask_amount","ask_price","bid_price","bid_amount"]
[1755792968952,0.1176,4263.6,4263.5,7.180291]
[1755792969159,0.002,4264.7,4263.8,2.34528598]
[1755792969366,0.1176,4264.1,4263.9,4.1864527]
[1755792969527,0.1176,4264.1,4264.0,0.90556]
[1755792969933,0.1176,4264.1,4264.0,5.06756]
[1755792970241,0.1176,4264.1,4264.0,4.77286]
[1755792970447,0.1176,4264.1,4264.0,5.06756]
[1755792970653,0.1176,4264.1,4264.0,7.41277575]
[1755792970871,0.1176,4264.1,4264.0,7.87527575]
[1755792971030,0.002,4264.7,4264.1,5.34515356]
[1755792971232,0.1176,4264.4,4264.2,0.48614205]
[1755792971487,0.1176,4264.4,4264.3,4.4557]
[1755792972143,0.1176,4264.4,4264.3,6.80075077]
[1755792972339,0.1176,4264.4,4264.3,4.4557]
[1755792972755,0.1176,4264.4,4264.3,6.82420127]
[1755792972955,0.1176,4264.4,4264.3,7.41161077]
[1755792973177,0.1176,4264.4,4264.3,5.52906]
[1755792973330,0.1176,4264.4,4264.3,8.06656]
[1755792973535,0.002,4264.7,4264.6,2.3448858]
[1755792973829,0.002,4264.7,4264.6,10.4595858]
[1755792974027,0.002,4264.7,4264.6,11.3847768]
[1755792975840,0.002,4264.7,4264.6,28.48660505]
[1755792977036,0.002,4264.7,4264.6,10.9202768]
[1755792977329,0.002,4264.7,4264.6,11.3827768]
[1755792979040,0.02,4265.8,4265.7,3.00428112]
[1755792979367,0.02,4265.8,4265.7,12.89428393]
[1755792979668,0.02,4265.8,4265.7,12.87084112]
[1755792980333,0.02,4265.8,4265.7,13.33334112]
[1755792981377,0.02,4265.8,4265.7,12.87084112]
[1755792982162,0.02,4265.8,4265.7,8.71384112]
[1755792982475,0.02,4265.8,4265.7,12.86884112]
[1755792982630,0.02,4265.8,4265.7,13.33134112]
[1755792984973,0.02,4265.8,4265.7,12.86884112]
[1755792985176,0.02,4265.8,4265.7,13.33134112]
[1755792985705,0.02,4265.8,4265.7,13.44894112]
[1755792985910,0.02,4265.8,4265.7,8.83144112]
[1755792986078,0.02,4265.8,4265.7,12.98344112]
[1755792986277,0.02,4265.8,4265.7,13.44594112]
[1755792989282,0.3317,4265.8,4265.7,8.53674112]
[1755792989479,0.02,4265.8,4265.7,12.68674112]
[1755792989769,0.8011,4265.8,4265.7,1.804]
[1755792989991,0.8011,4265.8,4265.7,5.954]
[1755792990496,0.8011,4265.8,4265.7,8.953]
[1755792991901,0.8011,4265.8,4265.7,4.804]
[1755792992108,0.3317,4265.8,4265.7,8.953]
[1755792992267,0.1376,4265.8,4265.7,8.953]
[1755792992471,0.02,4265.8,4265.7,9.613]
[1755792993205,0.3317,4265.8,4265.7,8.952]
[1755792993388,0.8011,4265.8,4265.7,8.952]
[1755792993989,0.8011,4265.8,4265.7,4.804]
[1755792994170,0.8011,4265.8,4265.7,8.952]
[1755792994366,0.8011,4265.8,4265.7,4.804]
[1755792994894,0.9187,4265.8,4265.7,8.951]
[1755792995295,0.4493,4265.8,4265.7,8.951]
[1755792995518,0.02,4265.8,4265.7,11.58998112]
[1755792995683,0.02,4265.8,4265.7,8.951]
[1755792996016,0.3317,4265.8,4265.7,4.804]
[1755792996216,0.3317,4265.8,4265.7,8.951]
[1755792996514,0.3317,4265.8,4265.7,4.804]
[1755792996515,0.8011,4265.8,4265.7,4.804]
[1755792996679,0.02,4265.8,4265.7,8.951]
[1755792997083,0.02,4265.8,4265.7,12.24998112]
[1755792997716,0.02,4265.8,4265.7,9.611]
[1755792998600,0.7806,4265.8,4265.7,5.95]
[1755792998785,0.8982,4265.8,4265.7,5.95]
[1755792999821,0.8982,4265.8,4265.7,5.949]
[1755793000022,0.4434,4265.8,4265.7,5.949]
[1755793000652,0.1376,4265.8,4265.7,6.2632]
[1755793000834,0.1376,4265.8,4265.7,5.949]
[1755793001141,0.3746,4265.8,4265.7,5.949]
[1755793002607,0.8272,4265.8,4265.7,5.949]
[1755793003060,0.3746,4265.8,4265.7,5.947]
[1755793003226,0.1376,4265.8,4265.7,5.947]
[1755793003550,0.1376,4265.8,4265.7,6.2612]
[1755793003854,0.4434,4265.8,4265.7,5.947]
[1755793004653,0.828,4265.8,4265.7,1.804]
[1755793004951,0.828,4265.8,4265.7,5.946]
[1755793005624,0.4434,4265.8,4265.7,5.946]
[1755793006248,0.1376,4265.8,4265.7,5.946]
[1755793006667,0.1376,4265.8,4265.7,8.60448112]
[1755793006841,0.02,4265.8,4265.7,6.2602]
[1755793007342,0.02,4265.8,4265.7,9.26448112]
[1755793007549,0.02,4265.8,4265.7,6.9202]
[1755793007970,0.02,4265.8,4265.7,5.946]
[1755793008546,0.02,4265.8,4265.7,8.60448112]
[1755793009076,0.02,4265.8,4265.7,12.73228112]
[1755793010464,0.02,4265.8,4265.7,26.3228536]
[1755793010786,0.02,4265.8,4265.7,26.4404536]
[1755793014672,0.02,4265.8,4265.7,26.6757536]
[1755793015075,0.022,4265.8,4265.7,26.7697006]
[1755793016694,0.002,4266.3,4266.2,3.00400637]
[1755793016864,0.002,4266.3,4266.2,10.47764643]
[1755793017201,0.002,4266.3,4266.2,11.03960637]
[1755793017495,0.002,4266.3,4266.2,11.15640637]
[1755793017884,0.02,4266.8,4266.7,3.00373168]
[1755793018105,0.02,4266.8,4266.7,9.93192252]
[1755793018416,0.02,4266.8,4266.7,10.37628521]
[1755793019087,0.02,4266.8,4266.7,10.55287442]
[1755793019384,0.02,4266.8,4266.7,11.00767442]
[1755793019580,0.02,4266.8,4266.7,6.08967442]
[1755793019784,0.3258,4266.8,4266.7,10.22467442]
[1755793020008,0.3258,4266.8,4266.7,6.08967442]
[1755793020221,0.3258,4266.8,4266.7,2.55118921]
[1755793020522,0.7806,4266.8,4266.7,11.45732089]
[1755793020694,0.02,4266.8,4266.7,11.45732089]
[1755793020896,0.3258,4266.8,4266.7,11.45732089]
[1755793021196,0.7806,4266.8,4266.7,9.11358921]
[1755793021382,0.7806,4266.8,4266.3,0.4548]
[1755793021734,0.7806,4266.8,4266.2,1.803]
[1755793021735,0.1168,4266.4,4266.2,1.803]
[1755793022017,0.01384262,4266.7,4266.3,4.134]
[1755793022191,0.3058,4266.4,4266.3,4.134]
[1755793022396,0.4226,4266.4,4266.3,4.134]
[1755793022618,0.8774,4266.4,4265.8,1.802]
[1755793022929,0.4548,4266.3,4265.8,1.802]
[1755793023138,0.4548,4266.3,4265.9,4.133]
[1755793023302,0.3058,4266.0,4265.9,4.133]
[1755793023631,0.8782,4266.0,4265.9,4.133]
[1755793024233,0.7606,4266.0,4265.9,4.7265]
[1755793024517,0.7606,4266.0,4265.9,4.132]
[1755793024734,0.7606,4266.0,4265.8,1.802]
[1755793024905,0.3058,4266.0,4265.9,4.132]
[1755793025113,0.7606,4266.0,4265.9,4.132]
[1755793025853,0.1176,4266.1,4265.9,4.15544171]
[1755793026023,0.1176,4266.1,4266.0,0.59574417]
[1755793026219,0.1176,4266.1,4266.0,2.93986043]
[1755793026443,0.1176,4266.1,4266.0,3.27750159]
[1755793026839,0.02,4266.8,4266.6,2.34374472]
[1755793027046,0.02,4266.8,4266.7,5.95843731]
[1755793027255,0.02,4266.8,4266.7,9.52960683]
[1755793027555,0.02,4266.8,4266.7,11.75653851]
[1755793028353,0.2773,4266.8,4266.7,8.934]
[1755793028658,0.2773,4266.8,4266.7,4.803]
[1755793028957,0.2773,4266.8,4266.7,11.27773168]
[1755793029160,0.2773,4266.8,4266.7,7.14673168]
[1755793029327,0.2773,4266.8,4266.7,11.27773168]
[1755793029524,0.2773,4266.8,4266.7,7.14673168]
[1755793029725,0.2773,4266.8,4266.7,11.27773168]
[1755793030059,0.02,4266.8,4266.7,11.27773168]
[1755793030421,0.2793,4266.8,4266.7,4.803]
[1755793030626,0.2793,4266.8,4266.7,8.933]
[1755793030823,0.2793,4266.8,4266.7,1.803]
[1755793030824,0.7302,4266.8,4266.7,1.803]
[1755793031042,0.7302,4266.8,4266.7,5.933]
[1755793031242,0.847,4266.8,4266.7,5.933]
[1755793031537,0.847,4266.8,4266.7,1.803]
[1755793031728,0.847,4266.8,4266.7,5.933]
[1755793032858,0.847,4266.8,4266.7,1.803]
[1755793033058,0.847,4266.8,4266.7,5.932]
[1755793034642,0.847,4266.8,4266.7,1.803]
[1755793034962,0.847,4266.8,4266.7,5.932]
[1755793036448,0.847,4266.8,4266.7,5.931]
[1755793036782,0.1368,4266.8,4266.7,5.931]
[1755793036974,0.4458,4266.8,4266.7,5.931]
[1755793037144,0.1368,4266.8,4266.7,5.931]
[1755793037467,0.1368,4266.8,4266.7,6.2378]
[1755793037973,0.1368,4266.8,4266.7,8.58153168]
[1755793038187,0.1368,4266.8,4266.7,6.2378]
[1755793038349,0.1368,4266.8,4266.7,8.58153168]
[1755793038750,0.02,4266.8,4266.7,12.04533168]
[1755793039465,0.02,4266.8,4266.7,12.70533168]
[1755793041185,0.02,4266.8,4266.7,12.82213168]
[1755793041883,0.02,4266.8,4266.7,12.93893168]
[1755793045594,0.02,4266.8,4266.7,8.81093168]
[1755793045800,0.02,4266.8,4266.7,12.93493168]
[1755793046967,0.02,4266.8,4266.7,8.81093168]
[1755793047170,0.02,4266.8,4266.7,12.16333168]
[1755793047492,0.02,4266.8,4266.7,12.93393168]
[1755793047859,0.02,4266.8,4266.7,8.81093168]
[1755793048062,0.02,4266.8,4266.7,8.34713168]
[1755793048400,0.02,4266.8,4266.7,14.63151327]
[1755793048609,0.02,4266.8,4266.7,18.75351327]
[1755793048899,0.02,4266.8,4266.7,9.8186]
[1755793048900,0.329,4266.8,4266.7,9.8186]
[1755793049083,0.329,4266.8,4266.7,12.16233168]
[1755793049271,0.02,4266.8,4266.7,12.93293168]
[1755793050078,0.02,4266.8,4266.7,12.46913168]
[1755793050870,0.02,4266.8,4266.7,12.93293168]
[1755793052412,0.02,4266.8,4266.7,26.51707209]
[1755793054305,0.02,4266.8,4266.7,26.51507209]
[1755793054602,0.02,4266.8,4266.7,26.05127209]
[1755793055183,0.02,4266.8,4266.7,26.51507209]
[1755793055815,0.02,4266.8,4266.7,26.51407209]
[1755793056521,0.02,4266.8,4266.7,22.39507209]
[1755793056721,0.02,4266.8,4266.7,26.51407209]
[1755793057425,0.329,4266.8,4266.7,12.15933168]
[1755793057734,0.02,4266.8,4266.7,12.91653168]
[1755793060033,0.02,4266.8,4266.7,12.79973168]
[1755793060237,0.02,4266.8,4266.7,12.91653168]
[1755793062328,0.002,4266.9,4266.8,6.00367676]
[1755793062699,0.002,4266.9,4266.8,7.116]
[1755793062700,0.7674,4266.9,4266.8,7.116]
[1755793062899,0.7674,4266.9,4266.8,4.116]
[1755793064114,0.7674,4266.9,4266.7,1.9198]
[1755793064292,0.3008,4266.9,4266.7,1.9198]
[1755793064493,0.4666,4266.8,4266.7,1.9198]
[1755793064722,0.7654,4266.8,4266.7,6.0348]
[1755793066647,0.7654,4266.8,4266.7,8.37853168]
[1755793067601,0.002,4266.9,4266.7,8.37853168]
[1755793067602,0.002,4266.9,4266.8,3.00367676]
[1755793067823,0.002,4266.9,4266.8,19.61125393]
[1755793068000,0.3008,4266.9,4266.8,19.58781717]
[1755793068395,0.002,4266.9,4266.8,19.58781717]
[1755793068837,0.3008,4266.9,4266.8,19.58781717]
[1755793068994,0.3008,4266.9,4266.8,23.70081717]
[1755793072432,0.3008,4266.9,4266.8,19.58781717]
[1755793072597,0.7674,4266.9,4266.8,13.58414041]
[1755793072797,0.7674,4266.9,4266.8,4.112]
[1755793073414,0.7674,4266.9,4266.8,4.111]
[1755793074119,0.7674,4266.9,4266.7,1.803]
[1755793074295,0.7674,4266.9,4266.8,10.39612366]
[1755793074296,0.3008,4266.9,4266.8,10.39612366]
[1755793074910,0.7674,4266.9,4266.8,10.39612366]
[1755793075310,0.7674,4266.9,4266.7,1.803]
[1755793075533,0.3008,4266.9,4266.8,4.111]
[1755793075835,0.3008,4266.9,4266.8,4.13343676]
[1755793076028,0.4176,4266.9,4266.8,4.13343676]
[1755793076346,0.8842,4266.9,4266.8,4.13343676]
[1755793077396,0.1188,4266.9,4266.8,4.13343676]
[1755793077601,0.1188,4266.9,4266.8,4.43543676]
[1755793078019,0.1188,4266.9,4266.8,6.77911352]
[1755793078250,0.1188,4266.9,4266.8,6.45367676]
[1755793079006,0.1188,4266.9,4266.8,6.75567676]
[1755793080139,0.002,4266.9,4266.8,7.21087676]
[1755793081235,0.002,4266.9,4266.8,10.21087676]
[1755793081460,0.3008,4266.9,4266.8,11.62880042]
[1755793081654,0.3008,4266.9,4266.7,1.803]
[1755793081655,0.7674,4266.9,4266.7,1.803]
[1755793081962,0.3008,4266.9,4266.8,10.41656042]
[1755793082106,0.1188,4266.9,4266.8,10.69512366]
[1755793082434,0.8842,4266.9,4266.8,4.108]
[1755793083177,0.8842,4266.9,4266.8,4.107]
[1755793083638,0.8842,4266.9,4266.8,10.41556042]
[1755793083818,0.8842,4266.9,4266.8,10.39212366]
[1755793084348,0.4176,4266.9,4266.8,10.39212366]
[1755793084649,0.4176,4266.9,4266.8,12.73580042]
[1755793084814,0.1188,4266.9,4266.8,12.73580042]
[1755793085021,0.02,4267.8,4266.9,0.66]
[1755793085211,0.02,4267.8,4267.4,6.28512366]
[1755793085538,0.02,4267.8,4267.5,5.93143292]
[1755793085738,0.02,4267.8,4267.5,8.25128449]
[1755793085933,0.1168,4267.7,4267.5,6.317]
[1755793087047,0.1168,4267.7,4267.6,0.02343237]
[1755793087242,0.4156,4267.7,4267.6,0.02343237]
[1755793087431,0.4156,4267.7,4267.5,6.317]
[1755793088361,0.4156,4267.7,4267.5,2.211]
[1755793088526,0.4504,4267.6,4267.5,1.802]
[1755793088725,0.7623,4267.6,4267.5,1.802]
[1755793088940,0.7623,4267.6,4267.5,5.907]
[1755793089970,0.7623,4267.6,4267.5,5.906]
[1755793090166,0.7623,4267.6,4267.5,4.104]
[1755793090474,0.4287,4267.6,4267.5,4.104]
[1755793090767,0.8791,4267.6,4267.5,4.104]
[1755793091161,0.4287,4267.6,4267.5,4.104]
[1755793091456,0.8791,4267.6,4267.5,4.104]
[1755793091660,0.4287,4267.6,4267.5,4.104]
[1755793091961,0.8791,4267.6,4267.5,4.104]
[1755793092670,0.4287,4267.6,4267.5,4.104]
[1755793093073,0.8791,4267.6,4267.2,6.73552366]
[1755793093277,0.7623,4267.6,4267.3,4.104]
[1755793093477,0.4504,4267.5,4267.3,4.104]
[1755793093647,0.8791,4267.4,4267.3,4.104]
[1755793094169,0.8791,4267.4,4267.3,4.103]
[1755793094975,0.1168,4267.4,4267.3,0.2986]
[1755793095176,0.4287,4267.4,4267.3,4.103]
[1755793095966,0.8791,4267.4,4267.3,4.103]
[1755793096278,0.8791,4267.4,4267.1,6.28512366]
[1755793096476,0.46424262,4267.3,4267.0,1.802]
[1755793096642,0.4287,4267.1,4266.9,4.102]
[1755793096842,0.58104262,4267.0,4266.6,6.28612366]
[1755793097048,0.3119,4266.7,4266.6,0.001]
[1755793097243,0.44254262,4266.7,4266.6,0.001]
[1755793097445,0.89294262,4266.7,4266.6,0.001]
[1755793097658,0.8791,4266.7,4266.6,0.001]
[1755793097844,0.99782008,4266.7,4266.6,0.001]
[1755793098186,34.77266427,4266.7,4266.6,0.001]
[1755793098375,37.62646337,4266.7,4266.6,0.001]
[1755793098781,37.8729753,4266.7,4266.6,0.001]
[1755793098957,41.9739753,4266.7,4266.6,0.001]
[1755793099360,41.84236018,4266.7,4266.6,0.001]
[1755793099692,41.97379945,4266.7,4266.6,0.001]
[1755793099987,38.50385552,4266.7,4266.6,0.001]
[1755793100192,41.97279945,4266.7,4266.6,0.001]
[1755793100489,41.84236018,4266.7,4266.6,0.001]
[1755793100847,41.97365885,4266.7,4266.6,0.001]
[1755793101368,41.84236018,4266.7,4266.6,0.001]
[1755793101692,7.62646337,4266.7,4266.6,0.001]
[1755793101975,8.6401,4266.7,4266.6,0.001]
[1755793102183,5.6401,4266.7,4266.6,0.001]
[1755793102381,8.6401,4266.7,4266.6,0.001]
[1755793103184,38.75885515,4266.7,4266.6,0.001]
[1755793103379,8.75885515,4266.7,4266.6,0.001]
[1755793103566,9.64434177,4266.7,4266.6,0.001]
[1755793103884,9.52558662,4266.7,4266.6,0.001]
[1755793104408,9.64410316,4266.7,4266.6,0.001]
[1755793105196,9.52558662,4266.7,4266.6,0.001]
[1755793105390,9.52458662,4266.7,4266.6,0.001]
[1755793107860,8.86458662,4266.7,4266.6,0.001]
[1755793108065,8.41318662,4266.7,4266.6,0.001]
[1755793108278,4.2158,4266.7,4266.6,0.2996]
[1755793108602,0.1168,4266.7,4266.6,0.7322]
[1755793111460,0.1168,4266.7,4266.6,0.2996]
[1755793112118,0.8209,4266.7,4266.6,0.001]
[1755793112708,1.49474262,4266.7,4266.6,0.001]
[1755793112867,2.35411688,4266.7,4266.6,0.001]
[1755793114589,8.34271688,4266.7,4266.6,0.001]
[1755793114789,4.23187426,4266.7,4266.6,0.001]
[1755793114991,4.2128,4266.7,4266.6,0.001]
[1755793115391,4.9169,4266.7,4266.6,0.001]
[1755793116116,8.5769,4266.7,4266.6,0.001]
[1755793119199,0.1168,4266.7,4266.6,0.001]
[1755793119533,0.1168,4266.7,4266.6,0.7348]
[1755793120795,0.1168,4266.7,4266.6,0.2871]
[1755793120989,0.1168,4266.7,4266.6,0.001]
[1755793121731,0.1168,4266.7,4266.6,0.7348]
[1755793123267,0.1168,4266.7,4266.6,0.2871]
[1755793124437,0.1168,4266.7,4266.6,0.001]
[1755793125004,0.1168,4266.7,4266.6,0.2871]
[1755793125307,0.1168,4266.7,4266.6,0.001]
[1755793126105,0.1168,4266.7,4266.6,0.2871]
[1755793126543,0.1168,4266.7,4266.6,0.001]
[1755793127139,0.84130688,4266.7,4266.6,0.001]
[1755793127436,1.31500688,4266.7,4266.6,0.001]
[1755793127758,0.53936426,4266.7,4266.6,0.2871]
[1755793128036,0.1168,4266.7,4266.6,0.2871]
[1755793128237,0.13064262,4266.7,4266.6,0.7348]
[1755793128637,0.13064262,4266.7,4266.6,0.001]
[1755793128815,1.31490688,4266.7,4266.6,0.001]
[1755793130047,0.55310688,4266.7,4266.6,0.001]
[1755793130206,0.41874262,4266.7,4266.6,0.001]
[1755793130413,0.89244262,4266.7,4266.6,0.001]
[1755793130606,0.13064262,4266.7,4266.6,0.001]
[1755793130834,0.1168,4266.7,4266.6,0.2871]
[1755793131438,0.1168,4266.7,4266.6,0.7348]
[1755793132708,0.1168,4266.7,4266.6,0.2871]
[1755793133361,0.4049,4266.7,4266.6,0.001]
[1755793133709,0.85617426,4266.7,4266.6,0.001]
[1755793134329,0.87001688,4266.7,4266.6,0.001]
[1755793135415,5.00371688,4266.7,4266.6,0.001]
[1755793135621,4.98987426,4266.7,4266.6,0.001]
[1755793137648,5.71498939,4266.7,4266.6,0.001]
[1755793141254,2.24128939,4266.7,4266.6,0.001]
[1755793141553,4.2048,4266.7,4266.6,0.7348]
[1755793141947,4.2048,4266.7,4266.6,0.2871]
[1755793142263,4.21864262,4266.7,4266.6,0.2871]
[1755793142425,0.1168,4266.7,4266.6,0.7348]
[1755793143135,0.13064262,4266.7,4266.6,0.7348]
[1755793143335,0.1168,4266.7,4266.6,0.7348]
[1755793144256,0.1168,4266.7,4266.6,0.2871]
[1755793145175,0.55280688,4266.7,4266.6,0.001]
[1755793146358,3.53896426,4266.7,4266.6,0.001]
[1755793146668,4.28050688,4266.7,4266.6,0.001]
[1755793147983,35.66561404,4266.7,4266.6,0.001]
[1755793148136,35.65177142,4266.7,4266.6,0.001]
[1755793148335,5.65177142,4266.7,4266.6,0.001]
[1755793148939,9.73777142,4266.7,4266.6,0.001]
[1755793149184,39.86946752,4266.7,4266.6,0.001]
[1755793151357,42.2131992,4266.7,4266.6,0.001]
[1755793151748,43.05524865,4266.7,4266.6,0.001]
[1755793151937,42.21287876,4266.7,4266.6,0.001]
[1755793152143,42.21287876,4266.7,4266.3,0.001]
[1755793152144,6.00389649,4266.4,4266.3,0.001]
[1755793152463,6.00395143,4266.3,4266.2,0.001]
[1755793152779,37.72422061,4266.3,4266.2,0.001]
[1755793153071,6.00400637,4266.2,4266.1,0.001]
[1755793153237,41.69247555,4266.2,4266.1,0.001]
[1755793153439,44.05461518,4266.2,4266.1,0.001]
[1755793154880,44.89624657,4266.2,4266.1,0.001]
[1755793155050,44.8960393,4266.2,4266.1,0.001]
[1755793155242,44.05440791,4266.2,4266.1,0.001]
[1755793156467,6.00411626,4266.0,4265.9,0.001]
[1755793156672,43.7354178,4266.0,4265.9,0.001]
[1755793156879,44.1721178,4266.0,4265.9,0.001]
[1755793157256,42.02155914,4266.0,4265.9,0.001]
[1755793157457,42.45825914,4266.0,4265.9,0.001]
[1755793157870,37.18870154,4266.0,4265.9,0.001]
[1755793158058,10.28932651,4266.0,4265.9,0.001]
[1755793158259,7.92718688,4266.0,4265.9,0.2946]
[1755793158668,4.80958688,4266.0,4265.9,0.2946]
[1755793159001,4.8626,4266.0,4265.9,0.2946]
[1755793159492,4.8626,4266.0,4265.9,0.001]
[1755793160507,38.6097,4266.0,4265.9,0.001]
[1755793160708,40.97183963,4266.0,4265.9,0.001]
[1755793161291,40.53513963,4266.0,4265.9,0.001]
[1755793161913,36.13973963,4266.0,4265.9,0.001]
[1755793162225,41.38807031,4266.0,4265.9,0.001]
[1755793162435,6.99367031,4266.0,4265.9,0.001]
[1755793162705,7.8616,4266.0,4265.9,0.7527]
[1755793163933,0.1176,4266.0,4265.9,0.7527]
[1755793164575,0.13144262,4266.0,4265.9,0.7527]
[1755793165707,3.13144262,4266.0,4265.9,0.7527]
[1755793166006,3.13144262,4266.0,4265.9,0.001]
[1755793166200,3.85308688,4266.0,4265.9,0.001]
[1755793166902,3.85308688,4266.0,4265.9,0.2946]
[1755793167915,4.51308688,4266.0,4265.9,0.001]
[1755793168125,4.78378688,4266.0,4265.9,0.001]
[1755793168428,4.76994426,4266.0,4265.9,0.001]
[1755793168895,35.20494426,4266.0,4265.9,0.001]
[1755793169237,35.92841956,4266.0,4265.9,0.001]
[1755793170415,35.70949247,4266.0,4265.9,0.001]
[1755793170615,35.92842661,4266.0,4265.9,0.001]
[1755793170918,39.57542661,4266.0,4265.9,0.001]
[1755793171327,9.30372661,4266.0,4265.9,0.2946]
[1755793171695,8.64372661,4266.0,4265.9,0.2946]
[1755793172022,8.7991784,4266.0,4265.9,0.7527]
[1755793172198,8.1391784,4266.0,4265.9,0.7527]
[1755793172597,8.7991784,4266.0,4265.9,0.7527]
[1755793172920,8.58024426,4266.0,4265.9,0.7527]
[1755793173329,3.72164426,4266.0,4265.9,0.7527]
[1755793173529,7.92024426,4266.0,4265.9,0.7527]
[1755793173740,3.83924426,4266.0,4265.9,0.7527]
[1755793174024,4.21244262,4266.0,4265.9,0.7527]
[1755793174393,4.1986,4266.0,4265.9,0.7527]
[1755793175302,4.21244262,4266.0,4265.9,0.7527]
[1755793176929,0.13144262,4266.0,4265.9,0.7527]
[1755793177237,4.21144262,4266.0,4265.9,0.7527]
[1755793177800,0.13144262,4266.0,4265.9,0.7527]
[1755793178001,0.1176,4266.0,4265.9,0.7527]
[1755793185510,0.1176,4266.0,4265.9,0.2946]
[1755793185716,0.13144262,4266.0,4265.9,0.001]
[1755793186967,0.13144262,4266.0,4265.9,0.31]
[1755793187324,0.1176,4266.0,4265.9,0.7711]
[1755793187643,0.13144262,4266.0,4265.9,0.7711]
[1755793188410,0.1176,4266.0,4265.9,0.7711]
[1755793196153,0.1176,4266.0,4265.9,1.09894779]
[1755793196723,0.1176,4266.0,4265.9,3.58416071]
[1755793197140,0.1176,4266.0,4265.9,1.2399895]
[1755793197324,0.1176,4266.0,4265.9,3.58416071]
[1755793198253,0.1176,4266.0,4265.9,1.2399895]
[1755793198623,0.1176,4266.0,4265.9,1.21654779]
[1755793199547,0.1176,4266.0,4265.9,3.58416071]
[1755793199715,0.1176,4266.0,4265.9,1.2399895]
[1755793200158,0.1176,4266.0,4265.9,3.58416071]
[1755793200660,0.1176,4266.0,4265.9,1.2399895]
[1755793201161,0.1176,4266.0,4265.9,4.2399895]
[1755793201548,0.1176,4266.0,4265.9,4.21654779]
[1755793202271,0.1176,4266.0,4265.9,6.560719]
[1755793203271,0.002,4266.1,4265.9,7.220719]
[1755793203455,0.002,4266.1,4266.0,4.21091947]
[1755793203783,0.002,4266.1,4266.0,21.1452126]
[1755793204080,0.1168,4266.4,4266.2,0.66]
[1755793204249,0.002,4266.6,4266.5,2.34384155]
[1755793204451,0.002,4266.6,4266.5,3.13737996]
[1755793204692,0.002,4266.6,4266.5,3.46522775]
[1755793205051,0.002,4266.6,4266.5,1.1213862]
[1755793205590,0.002,4266.6,4266.5,3.58202775]
[1755793206150,0.002,4266.6,4266.5,7.24202775]
[1755793206396,0.002,4266.6,4266.5,3.75364779]
[1755793206553,0.002,4266.6,4266.5,8.28474779]
[1755793206948,0.002,4266.6,4266.5,4.70684779]
[1755793207165,0.002,4266.6,4266.5,4.379]
[1755793207372,0.002,4266.6,4266.5,0.309]
[1755793207573,0.002,4266.6,4266.5,4.07]
[1755793207986,0.002,4266.6,4266.5,4.09343841]
[1755793208152,0.002,4266.6,4266.5,4.40503841]
[1755793208680,0.002,4266.6,4266.5,4.09343841]
[1755793208880,0.002,4266.6,4266.5,5.00636225]
[1755793209090,0.002,4266.6,4266.5,4.98292384]
[1755793209292,0.2995,4266.6,4266.5,4.67132384]
[1755793209486,0.2995,4266.6,4266.5,4.07]
[1755793209673,0.002,4266.6,4266.5,4.3816]
[1755793210192,0.002,4266.6,4266.5,4.07]
[1755793210394,0.2995,4266.6,4266.3,1.803]
[1755793210595,0.48274262,4266.5,4266.4,4.068]
[1755793210896,0.1168,4266.4,4266.1,4.068]
[1755793211087,0.2975,4266.2,4266.1,4.068]
[1755793211309,3.78024262,4266.2,4265.9,0.001]
[1755793211593,0.66,4265.7,4264.3,0.001]
[1755793211795,0.2975,4264.4,4262.9,0.094029]
[1755793211965,0.01384262,4264.3,4262.8,0.021]
[1755793212167,0.2975,4264.0,4262.8,0.021]
[1755793212374,3.0,4263.8,4262.8,0.021]
[1755793212572,0.2975,4263.1,4262.8,0.021]
[1755793212773,3.0,4262.9,4262.3,0.001]
[1755793212960,0.2975,4262.4,4261.9,0.001]
[1755793213159,0.01384262,4262.3,4261.9,0.001]
[1755793213365,0.2975,4262.2,4261.9,0.001]
[1755793213665,1.4264,4262.2,4261.9,0.001]
[1755793213859,0.91042426,4262.2,4261.9,0.001]
[1755793214476,0.44152426,4262.2,4261.9,0.001]
[1755793214676,0.2975,4262.2,4261.9,0.001]
[1755793215164,0.7664,4262.2,4261.9,0.001]
[1755793215700,0.2975,4262.2,4261.9,0.001]
[1755793216963,0.7664,4262.2,4261.9,0.001]
[1755793217462,0.7664,4262.2,4260.7,0.4503]
[1755793217463,0.098,4261.3,4260.8,0.04346977]
[1755793217683,0.098,4261.3,4261.2,0.3116]
[1755793218069,0.098,4261.3,4261.2,0.7619]
[1755793218686,0.098,4261.3,4261.2,0.7629]
[1755793219862,0.3955,4261.3,4261.2,0.001]
[1755793220062,0.8644,4261.3,4261.2,0.001]
[1755793220267,0.098,4261.3,4261.2,0.001]
[1755793220571,0.098,4261.3,4261.2,0.3126]
[1755793221088,0.3955,4261.3,4261.2,0.001]
[1755793221312,0.5131,4261.3,4261.2,0.001]
[1755793221613,0.2156,4261.3,4261.2,0.001]
[1755793222107,0.5131,4261.3,4261.2,0.001]
[1755793222982,0.982,4261.3,4261.2,0.001]
[1755793223176,0.884,4261.3,4261.2,0.001]
[1755793223476,1.544,4261.3,4261.2,0.001]